Cogmind - Beta 15 @@@ ROGUE MODE // 2025.06.09 @ 02:00:48 Player: Candle Result: Destroyed by D-53 Grenadier with Mini Grenade Launcher Performance ------------- Evolutions (0) 0 Regions Visited (2) 400 Robots Destroyed (19) 95 Value Destroyed (372) 372 Prototype IDs (0) 0 Alien Tech Used (0) 0 Bonus (0) 0 TOTAL SCORE: 867 Bonus ------- None Cogmind --------- Core Integrity 0/250 Matter 290/300 Energy 250/250 System Corruption 0% Temperature Cool (25) Movement Treading (160) Location -10/Mines Parts ------- > --- POWER (1) -------- Ion Engine > --- PROPULSION (2) --- Light Treads Light Treads > --- UTILITY (2) ------ Medium Storage Unit Visual Processing Unit > --- WEAPON (2) ------- Medium Laser > --- INVENTORY (10) --- Light Ion Engine Light Treads Compact Wheel Hover Unit Combat Airjet Improved Terrain Scanner Hacking Suite Datajack Mining Laser Peak State ------------ > --- POWER ------------ Ion Engine > --- PROPULSION ------- Light Treads Light Treads > --- UTILITY ---------- Medium Storage Unit Visual Processing Unit > --- WEAPON ----------- Medium Laser Medium Laser > --- INVENTORY -------- Light Ion Engine Light Treads Light Treads Compact Wheel Hover Unit Hover Unit Improved Terrain Scanner Light Assault Rifle Datajack Mining Laser [Rating: 9] Favorites ----------- Power Ion Engine Engine Ion Engine Propulsion Light Treads Treads Light Treads Wheel Wheel Utility Medium Storage Unit Device Seismic Detector Storage Medium Storage Unit Processor Visual Processing Unit Weapon Medium Laser Energy Gun Medium Laser Ballistic Gun Light Assault Rifle Build | -11 -10 -10 ------- Run | Yrd Mat Min Slots Evolved . | . . . Power . | . . . Propulsion . | . . . Utility . | . . . Weapon . | . . . Parts Attached 18 | 9 8 1 Power 3 | 1 2 . Engine 3 | 1 2 . Core . | . . . Reactor . | . . . Propulsion 6 | 4 2 . Treads 4 | 2 2 . Leg . | . . . Wheel 2 | 2 . . Hover . | . . . Flight . | . . . Utility 4 | 2 2 . Device 1 | 1 . . Storage 2 | 1 1 . Processor 1 | . 1 . Hackware . | . . . Protection . | . . . Artifact . | . . . Weapon 5 | 2 2 1 Energy Gun 3 | . 2 1 Energy Cannon . | . . . Ballistic Gun 2 | 2 . . Ballistic Cannon . | . . . Launcher . | . . . Special Weapon . | . . . Impact Weapon . | . . . Slashing Weapon . | . . . Piercing Weapon . | . . . Special Melee Weapon . | . . . Unidentified Prototypes . | . . . Parts Lost 4 | . 2 2 Power . | . . . Propulsion . | . . . Utility 1 | . 1 . Weapon 3 | . 1 2 Highest Loss Streak 2 | . 2 2 To Critical Strikes . | . . . Average Backups 9 | 3 9 9 Power 1 | . 1 1 Propulsion 4 | . 4 4 Utility 1 | . 1 2 Weapon 1 | 1 1 1 Tool/Special . | . . . Unused Backups 10 | . 2 8 Power 1 | . . 1 Propulsion 4 | . 1 3 Utility 2 | . . 2 Weapon 2 | . 1 1 Tool/Special 1 | . . 1 Average Slot Usage (%) 95 | . 95 100 Engine 14 | . 14 14 Treads 27 | . 27 28 Device 2 | . 2 . Storage 14 | . 14 14 Processor 8 | . 7 14 Energy Gun 21 | . 20 28 Ballistic Gun 6 | . 6 . Peak Build Rating 9 | 7 9 9 Average Rating 8 | 6 8 8 On Entrance 5 | . 7 9 Naked Turns . | . . . Heaviest Build 20 | 12 20 19 Greatest Support 40 | 40 40 40 Greatest Overweight (x) . | . . . Average Overweight (x) . | . . . Largest Inventory Capacity 10 | 8 10 10 Average Capacity 9 | 7 9 10 Most Carried 10 | 7 10 10 Average Carried 9 | 3 9 9 Final Capacity 10 | 8 10 10 Final Carried 10 | 6 10 9 Class Distribution -------------------- 100% | Mutant Dominant Class ---------------- Mutant | -10/Materials Mutant | -10/Mines Resources | -11 -10 -10 ----------- Run | Yrd Mat Min Matter Collected 574 | 304 270 . Remotely . | . . . Salvage Created 707 | 91 585 31 Parts 36 | 10 24 2 Haulers Intercepted 2 | . 2 . Recyclers Shooed 5 | . 5 . Parts Field Recycled . | . . . Retrieved Matter . | . . . Parts Self-Destructed . | . . . Prevented . | . . . Kills | -11 -10 -10 ------- Run | Yrd Mat Min Combat Hostiles Destroyed 9 | . 8 1 Guns 9 | . 8 1 Classes Destroyed 8 | 2 5 1 Tunneler 1 | 1 . . Hauler 2 | . 2 . Recycler 3 | 1 2 . Operator 1 | . 1 . Watcher 3 | . 3 . Swarmer 3 | . 3 . Grunt 5 | . 5 . Demolisher 1 | . . 1 Best Kill Streak 3 | 2 3 1 Combat Bots Only 3 | . 3 1 Max Kills in Single Turn 2 | 2 1 1 Gunslinging . | . . . Exploded . | . . . Melee . | . . . Uniques/NPCs Destroyed . | . . . Combat | -11 -10 -10 -------- Run | Yrd Mat Min Hostile Shots Fired 95 | . 85 10 Missed 15 | . 14 1 Hits 80 | . 71 9 Projectile 80 | . 71 9 AOE 10 | . . 10 Critical Strikes 1 | . 1 . Damage Taken 1218 | . 800 418 Core 285 | . 167 118 Absorbed by Shields . | . . . Regen/Repaired (Parts) 174 | . 174 . Core Remaining (%) 100 | 100 . . Volleys Fired 99 | 6 88 5 Largest 2 | 2 2 2 Hottest 100 | 40 100 100 Shots Fired 185 | 12 166 7 Gun 185 | 12 166 7 Cannon . | . . . Launcher . | . . . Special . | . . . Kinetic 86 | 12 74 . Thermal 99 | . 92 7 Explosive . | . . . Electromagnetic . | . . . Robot Hit Streak 22 | 3 22 4 Robot Miss Streak 5 | 5 4 2 Penetration Max . | . . . Secondary Targets 1 | . 1 . Max Gunslinging Chain 1 | . 1 . Shots Hit Robots 124 | 5 115 4 Core Hits 35 | 4 30 1 Critical Kills . | . . . Critical Parts Destroyed 1 | . 1 . Critical Strikes 8 | . 8 . Burn 7 | . 7 . Destroy 1 | . 1 . Melee Attacks . | . . . Impact . | . . . Slashing . | . . . Piercing . | . . . Sneak Attacks . | . . . Combat Hostiles . | . . . Follow-up Attacks . | . . . Damage Inflicted 1421 | 73 1298 50 Guns 1421 | 73 1298 50 Cannons . | . . . Explosions . | . . . Melee . | . . . Ramming . | . . . Kinetic 559 | 73 486 . Thermal 862 | . 812 50 Explosive . | . . . Electromagnetic . | . . . Impact . | . . . Slashing . | . . . Piercing . | . . . Highest Corruption . | . . . Average Corruption . | . . . Corruption Purged . | . . . Corruption Blocked . | . . . Overload Shots . | . . . Overflow Damage . | . . . Projectiles . | . . . Explosions . | . . . Melee . | . . . Knockbacks . | . . . Impact . | . . . Kinetic . | . . . Secondary . | . . . Self-Inflicted Damage . | . . . Shots . | . . . Rammed . | . . . Targets Rammed . | . . . Kicked . | . . . Crushed . | . . . Highest Temperature 273 | . 273 78 Average Temperature 79 | . 81 31 Received Heat Transfer 306 | . 306 . Siege Activations . | . . . Martial Activations . | . . . Shielding Activations . | . . . Robots Disrupted . | . . . Combat Hostiles . | . . . Robots Corrupted . | . . . Combat Hostiles . | . . . Parts Fried . | . . . Impact Corruptions . | . . . Robots Melted . | . . . Combat Hostiles . | . . . Parts Melted 3 | . 3 . Heat Transferred 3071 | . 2923 148 Parts Sabotaged . | . . . Parts Stolen . | . . . Parts Stripped . | . . . Power Chain Reactions . | . . . Alert | -11 -10 -10 ------- Run | Yrd Mat Min Maximum Alert Level . | . . . Low Security (%) 100 | 100 100 100 Level 1 . | . . . Level 2 . | . . . Level 3 . | . . . Level 4 . | . . . Level 5 . | . . . High Security . | . . . Max Security . | . . . Peak Influence 42 | 10 42 30 Initial 3 | . . 3 Average 7 | 1 8 1 Influence Increases 327 | 10 287 30 Destroy 0b10 Robot/C 180 | . 160 20 Destroy 0b10 Robot/NC 50 | 10 40 . Destroy Leader 60 | . 50 10 Successful Hack 36 | . 36 . Destroy Structure 1 | . 1 . Influence Decreases 327 | 10 278 39 Entered New Map 6 | . . 6 Time Decay 291 | 10 268 13 Lost Part 30 | . 10 20 Squads Dispatched 1 | . 1 . Investigation . | . . . Extermination . | . . . Reinforcement 1 | . 1 . Assault . | . . . Garrison . | . . . Intercept . | . . . Searches Triggered . | . . . Construction Impeded . | . . . Haulers Reinforced . | . . . Active Scanning Responses . | . . . Cargo Convoy Interrupts . | . . . Stealth | -11 -10 -10 --------- Run | Yrd Mat Min Distress Signals 1 | . 1 . Communications Jammed . | . . . Distress Signals . | . . . Times Spotted 17 | . 12 5 Peak Tracking Total 4 | . 3 4 Tactical Retreats . | . . . Traps | -11 -10 -10 ------- Run | Yrd Mat Min Traps Triggered 1 | . 1 . Indirectly . | . . . Trap Hack Attempts . | . . . Triggered . | . . . Disarmed 5 | . 5 . Reprogrammed . | . . . Reused . | . . . Traps Extracted . | . . . Installed . | . . . Triggered . | . . . Machines | -11 -10 -10 ---------- Run | Yrd Mat Min Machines Disabled . | . . . Max in Single Turn . | . . . Machines Repaired . | . . . Machines Dismantled . | . . . Machines Sabotaged . | . . . Overloaded Fab Kills . | . . . Hacking | -11 -10 -10 --------- Run | Yrd Mat Min Machines Accessed 10 | . 10 . Terminals 7 | . 7 . Fabricators . | . . . Repair Stations 1 | . 1 . Recycling Units 2 | . 2 . Scanalyzers . | . . . Garrison Access . | . . . Total Hacks 36 | . 36 . Successful 22 | . 22 . Failed 13 | . 13 . Catastrophic . | . . . Database Lockouts 1 | . 1 . Manual 20 | . 20 . Terminals 24 | . 24 . Fabricators . | . . . Repair Stations 7 | . 7 . Recycling Units 5 | . 5 . Scanalyzers . | . . . Garrison Access . | . . . Terminal Hacks 7 | . 7 . Robot Analysis 2 | . 2 . Terminal Index 1 | . 1 . Disarm Traps 1 | . 1 . Transport Status 1 | . 1 . Registered Components 1 | . 1 . Zone Layout 1 | . 1 . Fabricator Hacks . | . . . Repair Station Hacks 6 | . 6 . Scan Component 3 | . 3 . Repair 3 | . 3 . Recycling Unit Hacks 2 | . 2 . Report Inventory 1 | . 1 . Retrieve Components 1 | . 1 . Scanalyzer . | . . . Garrison Access Hacks . | . . . Unauthorized Hacks 7 | . 7 . Terminals 6 | . 6 . Track 1 | . 1 . Assimilate 1 | . 1 . Botnet 3 | . 3 . Operators 1 | . 1 . Fabricators . | . . . Repair Stations . | . . . Recycling Units 1 | . 1 . Mask 1 | . 1 . Scanalyzers . | . . . Garrison Access . | . . . Data Cores Recovered . | . . . Used . | . . . Hacking Detections 10 | . 10 . Full Trace Events . | . . . Feedback Events . | . . . Feedback Blocked . | . . . Robot Schematics Acquired . | . . . Robots Built . | . . . Authchips . | . . . Time . | . . . Total Robot Build Rating . | . . . Part Schematics Acquired . | . . . Parts Built . | . . . Authchips . | . . . Time . | . . . Total Part Build Rating . | . . . Parts Repaired 3 | . 3 . Time 78 | . 78 . Parts Recycled . | . . . Recycled Matter . | . . . Retrieved Matter . | . . . Retrieved Components 9 | . 9 . Parts Scanalyzed . | . . . Part Schematics Acquired . | . . . Parts Damaged . | . . . Bothacking | -11 -10 -10 ------------ Run | Yrd Mat Min Used RIF Installer . | . . . Robots Hacked . | . . . Non-combat . | . . . Combat . | . . . Robot Hacks Applied . | . . . Relay Couplers Released . | . . . Fabnet Peak Effective % . | . . . Robots Rewired . | . . . Allies Hacked . | . . . Hacks Repelled . | . . . Allies | -11 -10 -10 -------- Run | Yrd Mat Min Total Allies . | . . . Largest Group . | . . . Highest-Rated Group . | . . . Highest-Rated Ally . | . . . Total Orders . | . . . Ally Attacks . | . . . Total Damage . | . . . Kills . | . . . Allies Corrupted . | . . . Allies Melted . | . . . Intel | -11 -10 -10 ------- Run | Yrd Mat Min Active Infowar (turns) 1529 | 70 1352 107 Optics 1097 | . 990 107 Seismic 432 | 70 362 . Robot Analysis Total 2 | . 2 . Derelict Logs Recovered . | . . . Drone Launches . | . . . Drone Recoveries . | . . . Exploration | -11 -10 -10 ------------- Run | Yrd Mat Min Turns Passed 2038 | 128 1803 107 Spaces Moved 918 | 76 784 58 Core 1 | 1 . . Treads 877 | 35 784 58 Legs . | . . . Wheels 40 | 40 . . Hover . | . . . Flight . | . . . Fastest Speed 50 | 50 160 160 Average Speed 156 | 121 160 160 Slowest Speed 160 | 160 160 160 Overloaded Moves . | . . . Propulsion Burnouts . | . . . Robots Hopped . | . . . Potential Cave-ins . | . . . Cave-ins Triggered . | . . . Exploration Rate (%) 41 | 4 95 24 Regions Visited 2 Branch Regions 1 Pre-discovered Areas . | . . . Known Exits Taken . | . . . Unknown Exits Taken 2 | 1 1 . Scrap Searched . | . . . Spaces Dug . | . . . Terrain Destroyed . | . . . Melee . | . . . Projectile . | . . . AOE . | . . . Terrain Rammed . | . . . Walls Destroyed . | . . . Machines Disabled . | . . . Actions | -11 -10 -10 --------- Run | Yrd Mat Min Total 1341 | 98 1176 67 Wait 273 | . 272 1 Move 916 | 75 783 58 Hop . | . . . Pick Up 15 | 5 9 1 Fast Attach 14 | 9 5 . Attach 2 | . 1 1 Detach 2 | 2 . . Swap 7 | . 7 . Drop 13 | 1 11 1 Fire 99 | 6 88 5 Melee . | . . . Ram . | . . . Kick . | . . . Crush . | . . . Escape Stasis . | . . . Rewire . | . . . Trap . | . . . Miscellaneous . | . . . Route ------- -11/Scrapyard -10/Materials (discovered 6 exits: [*Mat x3] / [*Min x2] / [*Sub]) -10/Mines (discovered 1 exit: [*Mat]) History --------- Turn | Location | Event 10 | -11/Scrapyard | Discovered new exit (range 15) 129 | -11/Scrapyard | Entered Materials 305 | -10/Materials | Build established: Mutant 439 | -10/Materials | Repaired Lgt. Treads 465 | -10/Materials | Repaired Lgt. Treads 493 | -10/Materials | Repaired Med. Laser 538 | -10/Materials | Discovered new exit (range 11) 771 | -10/Materials | Core integrity fell below 50% 855 | -10/Materials | Discovered new exit (range 16) 1009 | -10/Materials | Discovered new exit (range 7) 1095 | -10/Materials | Discovered new exit (range 16) 1346 | -10/Materials | Discovered new exit (range 18) 1764 | -10/Materials | Discovered new exit (range 11) 1784 | -10/Materials | Central database locked down 1932 | -10/Materials | Entered Mines 1955 | -10/Mines | Discovered new exit (range 6) 2010 | -10/Mines | Assembled infested the area 2015 | -10/Mines | Assisted by a Guerilla fighting off Assembled 2031 | -10/Mines | Core integrity fell below 20% 2039 | -10/Mines | Destroyed by D-53 Grenadier with Mini Grenade Launcher Last Messages --------------- U-05 Engineer destroyed. K-01 Serf collects debris. The unstable cave ceiling collapses. U-05 Engineer builds a Wall. D-53 Grenadier destroyed. K-01 Serf destroyed. HV Slug penetrates Wall. HV Slug penetrates Earth. U-05 Engineer builds a Wall. Med. Laser destroyed. HV Slug penetrates Wall. Med. Laser destroyed. Dropped Hover Unit. Acquired Cmb. Airjet. HV Slug penetrates Wall. U-05 Engineer builds a Wall. HV Slug penetrates D-53 Grenadier. D-53 Grenadier knocked back. HV Slug penetrates Wall. U-05 Engineer builds a Wall. Map ----- +----------------------------------------------------+ | ???????????????????????????????????????????????? | | ???????????????????????????????????????????????? | | ???????????????????????????????????????????????? | | ???????????????????????????????????????????????? | | ???????????????????????????????????????????????? | | ???????????????????????????????????????????????? | | ???????????????????????????????????????????????? | | ???????????????????????????????????????????????? | | ???????????????????????????????????????????????? | | ??????????????????????? ???????????????????????? | | ??????????????????????? #??????????????????????? | | ??????????????????????? #??????????????????????? | | ?????????????????????## #??????????????????????? | | ????????????????????## ##?????????????????????? | | ???????????????###### ??????????????????????? | | ???????????????#g ??????????????????????? | | ???????????????#g ????????????? ???????? | | ????????????????g ??????####?? a ???????? | | ?????????????????# #?????# ## ???????? | | ?????????????????# ###### a% ?????????? | | ?????????????????# !???????????? | | ??????????????#### a #????????????? | | ????????????### #?????????????? | | ????????????# # ???????????????? | | ?????# ####### ##????????????????? | | ?????# @% #????????????????? | | ????????????# h ! d ;#####???????????? | | ???????????# % ; ##??????????? | | ???????????###### < #??????????? | | ????????????## ## # ### #??????????? | | ????????# ### #### ######??? ##??????????? | | ????????# ###r#?????????# ##???????????? | | ??????????#### ## ####?###### #????????????? | | ?????????????## #?# ########?????? | | ??????????????# """ #?# #### #?????? | | ??????????????# """ #### #?# ########### #?????? | | ??????????????# """ #??# #?# #####??## ####??? | | ????????????? ??# #?# ##?# #??? | | ???????????? ??# #?## #?# """ #??? | | ????????????#### ### ?# #??# ### """ #??? | | ???????????????###??? ?# #### ## """ #??? | | ????????????????????? ?# ## #??? | | ?????????????????????? ########## ### #??? | | ?????????????????????? ??????????####?# #??? | | ?????????????????????? ???????????????#######??? | | ???????????????????????#???????????????????????? | | ???????????????????????????????????????????????? | | ???????????????????????????????????????????????? | | ???????????????????????????????????????????????? | | ???????????????????????????????????????????????? | +----------------------------------------------------+ Best States ------------- Heat Dissipation 25 Energy Generation 10 Energy Capacity 250 Matter Stores 300 Matter Capacity 300 Sight Range 18 Terrain Scan Density 10 Evasion (%) 42 Recoil Reduction 2 Item Schematics ----------------- None Robot Schematics ------------------ None Fabricated ------------ Nothing Repaired ---------- Lgt. Treads | 42% | -10/Materials Lgt. Treads | 59% | -10/Materials Med. Laser | 47% | -10/Materials Alien Tech Used ----------------- None Achievements -------------- None Challenges ------------ None Game ------ Seed RagnarokControlDevice Manual? 0 Play Time 00:15:41 Cumulative 131.7 hours Start 2025.06.09 @ 01:33:13 End 2025.06.09 @ 02:00:48 Sessions 1 Manual Loads 0 Difficulty Rogue Special Mode None Game No. 165 Rogue 165 Adventurer 0 Explorer 0 Win Type - Total 0 Types 0/0/0/0/0/0/0/0/0/0 Lore% 40 Gallery% 38 Achievement% 33 Wizard Run 0 Options --------- Layout 1 ASCII 0 Keyboard 0 Movement Mouse Keybinds 0 Fullscreen 1 Font 32/SmallcapsGlow Map View 50x40 Zoom Use 0% Tactical HUD 0 Map Filters NONE Filters NONE Steam 1 RUN: 102207db-b742-40cb-96c9-93fde73ed6b7